[Event "European Women-ch 2023"]
[Site "Petrovac"]
[Date "2023.03.19"]
[Round "2.16"]
[White "Stefanova, Antoaneta"]
[Black "Toncheva, Nadya"]
[Result "0-1"]
[ECO "D78"]
[WhiteElo "2435"]
[BlackElo "2192"]
[Annotator "TA"]
[PlyCount "142"]
[EventDate "2023.03.15"]
[EventType "swiss"]
[EventCountry "MNE"]
[SourceTitle "playchess.com"]
[Source "ChessBase"]
[SourceQuality "1"]
[TimeControl "40/5400+30:1800+30"]

{[%evp 14,142,10,26,21,0,9,0,0,19,20,-27,-22,-27,20,0,0,0,9,0,-2,-15,-7,-9,0,-5,13,21,1,0,0,0,42,0,20,17,52,57,82,62,72,42,40,27,18,0,0,-15,-12,-46,-40,-78,-73,-71,-70,-153,-115,-156,-93,-91,-44,-63,45,36,50,35,43,53,44,0,0,0,29,0,50,58,191,191,202,189,190,192,216,177,185,183,187,160,235,150,145,150,158,140,122,85,93,51,58,56,75,0,0,0,0,-304,-306,-556,-541,-471,-382,-570,-549,-1041,-1008,-29970,-1136,-1254,-1189,-29975,-29977,-29975,-29976,-29980,-29971,-29981,-29982,-29982,-29983,-29983,-29983]} 1. d4 {[%emt 0:00:04] Pavlovic,Milos} d5 {[%emt 0:00:04]} 2. c4 {[%emt 0:00:04]} c6 {[%emt 0:00:35]} 3. Nf3 {[%emt 0:00:27]} Nf6 {[%emt 0:00:05]} 4. Qb3 {[%emt 0:04:05]} dxc4 {[%emt 0:01:50]} 5. Qxc4 {[%emt 0:00:05]} g6 {[%emt 0:05:21]} 6. g3 {[%emt 0:06:25]} Bg7 {[%emt 0:01:33]} 7. Bg2 {[%emt 0:00:06]} O-O {[%emt 0:01:49]} 8. O-O {[%emt 0:00:09]} Bf5 {[%emt 0:05:32] 8...b5 is the recent fashion. D78: Fianchetto Grünfeld: 6 0-0 c6.} 9. Rd1 {[%emt 0:03:37]} Nbd7 {[%emt 0:01:17]} 10. Nh4 {[%emt 0:01:44]} Nb6 {[%emt 0:05:21] The position is equal.} 11. Qb3 {[%emt 0:02:11]} Bg4 {[%emt 0:08:31] [#]} 12. f3 $146 {[%emt 0:12:32]} (12. Nc3 $142) ({Predecessor:} 12. Nc3 Nfd5 13. Nf3 Nxc3 14. bxc3 Qd5 15. Ba3 Rfe8 16. Ne5 Qxb3 17. axb3 Bxe2 18. Rd2 Bxe5 19. dxe5 {0-1 Giri,A (2769)-Svidler,P (2751) Sinquefield Cup 4th 2016 (8)}) 12... Be6 $11 {[%emt 0:00:07]} 13. Qc2 {[%emt 0:02:45]} Ne8 {[%emt 0:01:43]} (13... Nbd5 {might be stronger.}) 14. f4 {[%emt 0:05:37]} Nd6 {[%emt 0:04:51]} (14... Bxd4+ $2 15. e3 $18) 15. Nc3 {[%emt 0:05:17]} Nf5 {[%emt 0:09:45]} 16. Nf3 {[%emt 0:03:59]} Nd5 {[%emt 0:04:57] Threatening ...Nde3.} (16... Nxd4 $2 17. Nxd4 Bxd4+ 18. e3 $18) 17. Qd3 {[%emt 0:04:20] Against Nde3} Nb4 {[%emt 0:03:36]} 18. Qb1 {[%emt 0:01:14]} Qb6 {[%emt 0:07:19][%cal Rf5d4]} (18... Bxd4+ $2 19. e3 $18) 19. e3 {[%emt 0:04:37]} Rad8 {[%emt 0:02:16]} 20. a3 {[%emt 0:25:14] Repels c5} Nd5 {[%emt 0:01:20]} 21. Qd3 {[%emt 0:01:13]} Nc7 {[%emt 0:04:34]} 22. b4 {[%emt 0:01:59]} Bb3 {[%emt 0:02:21]} 23. Rd2 {[%emt 0:01:10][%cal Bd1d2,Bd2b2,Bb2b4,Bb4a4][%mdl 32]} (23. Re1 $5) 23... Nd6 {[%emt 0:04:08]} 24. Qb1 {[%emt 0:01:07]} Be6 {[%emt 0:01:01]} 25. Na4 $1 {[%emt 0:01:55]} Qb5 {[%emt 0:00:09]} 26. Nc5 {[%emt 0:00:16]} a5 {[%emt 0:06:12]} 27. Bf1 {[%emt 0:05:22]} Qb6 {[%emt 0:00:39]} 28. Rb2 {[%emt 0:01:36]} (28. Ne5 {with more complications.} axb4 29. axb4 Bf5 30. Qb3) 28... Bf5 {[%emt 0:01:39]} 29. Qa2 {[%emt 0:01:06]} axb4 {[%emt 0:01:01]} 30. Rxb4 {[%emt 0:00:40]} Qa7 {[%emt 0:00:15]} 31. Qb2 {[%emt 0:01:17]} Nd5 {[%emt 0:04:41]} 32. Ra4 {[%emt 0:00:20] Prevents b6} Qb8 {[%emt 0:00:14]} 33. Ne5 {[%emt 0:00:19]} f6 {[%emt 0:03:51]} 34. Nf3 {[%emt 0:00:17]} (34. Ned3 $1 $15) 34... b6 $17 {[%emt 0:00:32]} 35. Na6 {[%emt 0:00:54]} Qb7 {[%emt 0:00:26]} (35... Qa7 $142 {And now ...b5 would win.} 36. Nc5 Qb8) 36. Nb4 {[%emt 0:00:59]} b5 {[%emt 0:00:53] Black is more active.} (36... e6 $17 37. Bd2 b5 38. Nxd5 exd5) 37. Nxd5 {[%emt 0:00:44]} bxa4 {[%emt 0:02:00]} (37... e6 $15) 38. Qxb7 $14 {[%emt 0:00:20][%mdl 64] [#] Remove Defender} Nxb7 {[%emt 0:00:02]} 39. Nxe7+ {[%emt 0:00:10]} Kh8 {[%emt 0:01:32]} 40. Nxf5 {[%emt 0:00:00]} gxf5 {[%emt 0:00:00]} 41. Rb1 {[%emt 0:14:55]} Nd6 {[%emt 0:01:27]} 42. Rb6 {[%emt 0:04:54]} Ne4 {[%emt 0:04:07]} (42... Rb8 $5 {[%cal Rb8b6]} 43. Rxc6 Ne4 $11) 43. Rxc6 {[%emt 0:07:10]} (43. Bh3 $5 {[%cal Rh3f5]}) 43... Rc8 {[%emt 0:00:46]} ({Black should play} 43... Rb8 $11) 44. d5 {[%emt 0:01:20][%cal Bd4d5,Bd5c6][%mdl 32]} Nc3 {[%emt 0:03:17]} ({Better is} 44... Rfd8 $14) 45. Ba6 $18 {[%emt 0:01:56]} Rxc6 {[%emt 0:05:46]} 46. dxc6 {[%emt 0:00:01] Hoping for c7.} Nd5 {[%emt 0:00:13]} 47. Nd4 {[%emt 0:01:54]} Nc7 {[%emt 0:00:13]} 48. Bb7 {[%emt 0:02:45][%cal Oc1d2]} Rd8 {[%emt 0:00:59]} 49. Kf2 {[%emt 0:00:32]} (49. Nxf5 $2 Rd1+ 50. Kf2 Rxc1 $19) 49... Bf8 {[%emt 0:01:14]} 50. Ke2 {[%emt 0:00:06]} (50. Nxf5 $2 Rd1 51. Nd4 Rxc1 $19) 50... Rd5 {[%emt 0:02:31]} (50... Kg8 $16 51. Nxf5 Kf7) 51. Bb2 {[%emt 0:01:28]} Kg7 {[%emt 0:03:19]} 52. Bc8 {[%emt 0:00:11]} Kg6 {[%emt 0:00:54]} 53. Bd7 {[%emt 0:00:39]} Bc5 {[%emt 0:02:11]} 54. Nf3 {[%emt 0:00:24]} Kf7 {[%emt 0:02:53]} 55. h3 {[%emt 0:02:28]} Bb6 {[%emt 0:01:33]} 56. Nd4 {[%emt 0:00:14]} Bxd4 {[%emt 0:01:17]} 57. exd4 $14 {[%emt 0:00:40][%mdl 4096] Endgame KRN-KB} (57. Bxd4 $16 Nb5 58. c7 Nxc7 59. Bxa4) 57... Rb5 $11 {[%emt 0:00:55]} 58. Bc3 {[%emt 0:00:16]} Ke7 {[%emt 0:01:21]} 59. Kd3 $2 {[%emt 0:00:18][%mdl 8192] [#]} (59. Bb4+ $2 Rxb4 60. Bxf5 (60. axb4 $2 a3 $19) 60... Rb3 61. Bxh7 Rxg3 $19) (59. Kd2 $1 $11 Kd8 60. Bb4) 59... Nd5 $1 $19 {[%emt 0:01:25] aiming for ...Rb3.} 60. Be1 $2 {[%emt 0:00:26]} (60. Bxf5 Rb3 61. Kd2 Rxc3 $19) (60. Bb4+ Nxb4+ 61. Kc4 Nxc6 62. Bxc6) 60... Rb3+ {[%emt 0:00:38]} 61. Kc2 {[%emt 0:01:24]} Rxa3 {[%emt 0:00:58]} 62. Ba5 {[%emt 0:00:40]} (62. Bxf5 $142 Kd6 63. Bxh7) 62... Rxg3 {[%emt 0:00:46]} 63. Kb2 {[%emt 0:00:07]} Rb3+ {[%emt 0:01:00]} (63... Nxf4 64. Bxf5 (64. Bb4+ Kd8 $11) 64... Nd5 65. c7 Nxc7 66. Bxc7 $11) 64. Kc2 {[%emt 0:00:29]} Rxh3 {[%emt 0:00:20]} (64... Nxf4 65. Bxf5 Ne6 66. c7 Nxc7 67. Bxc7 $19) (64... Ne3+ $142 65. Kd2 Nc4+ {[%mdl 64] Discovered Attack, Double Attack} 66. Ke2 a3 67. d5 a2 68. d6+ Nxd6 69. Bd8+ Kxd8 70. Be6 Rb2+ 71. Kf3 a1=Q 72. c7+ Kxc7 73. Bxf5 Qf1+ 74. Kg3 Qg2+ 75. Kh4 Nxf5+ 76. Kh5 Qxh3#) 65. Kb2 {[%emt 0:00:23]} Rb3+ {[%emt 0:00:05]} ({Worse is} 65... Nxf4 66. Bb4+ Kd8 67. Ba5+ Ke7 68. Bb4+ Kd8 69. Ba5+ Ke7 $11) 66. Ka2 {[%emt 0:00:22]} Nc3+ {[%emt 0:00:32] Black mates.} ({Weaker is} 66... Nxf4 67. Bxf5 Nd5 68. c7 Nxc7 69. Bxc7 $11) 67. Bxc3 {[%emt 0:00:03]} Rxc3 {[%emt 0:00:04]} 68. d5 {[%emt 0:00:04]} Kd6 {[%emt 0:00:11]} 69. Kb2 {[%emt 0:00:11]} Rb3+ {[%emt 0:00:05]} 70. Ka2 {[%emt 0:00:04]} h5 {[%emt 0:00:09][%cal Bh7h5,Bh5h4][%mdl 32]} 71. Bxf5 {[%emt 0:00:05]} h4 {[%emt 0:00:11] A wild game.   Weighted Error Value: White=0.27 (precise) /Black=0.15 (very precise)} ({Not} 71... Kxd5 72. c7 Rc3 73. c8=Q Rxc8 74. Bxc8 $11) 0-1

[Event "European Women-ch 2023"]
[Site "Petrovac"]
[Date "2023.03.19"]
[Round "2.16"]
[White "Tsirulnik, Maritsa"]
[Black "Karaivanova, Petya"]
[Result "1-0"]
[ECO "E11"]
[WhiteElo "2121"]
[BlackElo "1875"]
[Annotator "TA"]
[PlyCount "115"]
[EventDate "2023.03.15"]
[EventType "swiss"]
[EventCountry "MNE"]
[SourceTitle "playchess.com"]
[Source "ChessBase"]
[SourceQuality "1"]
[TimeControl "40/5400+30:1800+30"]

{[%evp 19,115,3,7,0,4,-39,-12,-49,-52,-45,-47,-62,-12,-22,8,-29,-33,-73,-76,-72,-88,-78,-55,-54,-56,-37,-64,-82,-82,-93,0,0,-11,-21,0,0,74,79,85,79,135,129,213,175,285,272,268,274,266,245,441,457,442,438,495,150,151,100,112,47,74,60,69,82,91,42,735,715,737,733,829,695,796,738,1152,1124,1673,1535,1303,861,1125,1027,891,898,722,882,848,722,1548,1539,29977,29978,29979,29980,29982,29982,29983,29984]} 1. d4 {[%emt 0:00:02]} d5 {[%emt 0:03:36]} 2. c4 {[%emt 0:00:07]} e6 {[%emt 0:00:04]} 3. Nf3 {[%emt 0:02:37]} Nf6 {[%emt 0:00:05]} 4. g3 {[%emt 0:00:16]} Bb4+ {[%emt 0:00:11]} 5. Bd2 {[%emt 0:00:07]} Be7 {[%emt 0:00:08]} 6. Bg2 {[%emt 0:00:17]} c6 {[%emt 0:00:27]} 7. Qc2 {[%emt 0:03:16]} Nbd7 {[%emt 0:00:12]} 8. O-O {[%emt 0:00:25]} O-O {[%emt 0:00:05]} 9. Bf4 {[%emt 0:03:45]} b6 {[%emt 0:07:54]} 10. Nbd2 {[%emt 0:01:16]} Ba6 {[%emt 0:02:31]} 11. Rfd1 {[%emt 0:05:04] E11: Bogo-Indian.} Nh5 {[%emt 0:07:38]} 12. b3 {[%emt 0:13:29]} Rc8 {[%emt 0:07:46] [#]} 13. Nf1 $146 {[%emt 0:08:11] The position is equal.} ({Predecessor:} 13. Be3 f5 14. Nf1 f4 15. Bc1 Bd6 16. Bb2 Ndf6 17. Rac1 Ne4 {1-0 Kuzubov,Y (2642)-Sarana,A (2649) Titled Tuesday intern op 23rd Feb blitz 2021 (8)}) 13... Nxf4 {[%emt 0:01:36]} 14. gxf4 {[%emt 0:00:04]} Bb7 {[%emt 0:08:09]} 15. Ne5 {[%emt 0:08:48]} f6 {[%emt 0:06:20]} ({Better is} 15... Nxe5 $15 16. dxe5 f6) 16. Nd3 $11 {[%emt 0:02:58]} Qc7 {[%emt 0:09:39]} 17. Bh3 {[%emt 0:06:06]} f5 {[%emt 0:07:21]} 18. b4 {[%emt 0:10:29]} c5 {[%emt 0:03:34]} 19. bxc5 {[%emt 0:02:21]} bxc5 {[%emt 0:00:15]} 20. cxd5 {[%emt 0:00:15]} Bxd5 {[%emt 0:00:35]} 21. Ne3 {[%emt 0:02:13]} Be4 {[%emt 0:01:07] This pair of bishops is nice.} 22. Qc4 {[%emt 0:02:41]} Rf6 {[%emt 0:13:35] Hoping for ...Rg6+.} 23. Ne5 {[%emt 0:00:35][%cal Oh3f5] Wards off Rg6+} Nb6 {[%emt 0:04:45]} (23... cxd4 {simplifies} 24. Qxc7 Rxc7 25. N3c4 Nxe5 26. Nxe5 Bd6) 24. Qc3 {[%emt 0:05:44]} Nd5 {[%emt 0:02:48]} (24... c4 $1 $17 {Black wants to play ...Rh6.} 25. f3 Bc6) 25. Nxd5 {[%emt 0:00:10]} Bxd5 {[%emt 0:00:11]} 26. Bg2 {[%emt 0:02:43]} Bxg2 {[%emt 0:03:42]} 27. Kxg2 {[%emt 0:00:04]} Bd6 {[%emt 0:02:14]} (27... c4 $11) 28. dxc5 $1 $16 {[%emt 0:02:41]} Bxe5 {[%emt 0:01:31]} 29. fxe5 {[%emt 0:01:35]} (29. Qxe5 {simplifies} Qxe5 30. fxe5 Rf7 31. Rab1) 29... Qc6+ {[%emt 0:01:50]} (29... Qb7+ $142 30. f3 Rh6) 30. f3 {[%emt 0:00:29]} Rg6+ {[%emt 0:00:35]} (30... Rf7 $16 {was necessary.}) 31. Kh1 $18 {[%emt 0:01:27]} Qb5 {[%emt 0:02:08]} (31... Qxc5 $2 32. Rd8+ Rxd8 33. Qxc5 $18) (31... h6 $142) 32. Rab1 {[%emt 0:05:50]} Qxe2 {[%emt 0:02:24][%csl Gg6][%cal Re2g2]} 33. Rd2 {[%emt 0:00:03]} Qa6 {[%emt 0:00:09]} (33... Rxc5 $2 34. Rb8+) 34. c6 $1 {[%emt 0:02:32][%cal Bc5c6,Bc6c7][%mdl 32] c7 is the strong threat.} h6 $2 {[%emt 0:01:24]} (34... Rxc6 35. Rb8+) (34... h5 {keeps fighting.}) 35. c7 {[%emt 0:00:38] Black must now prevent Rd8+.} Kh7 {[%emt 0:00:38]} 36. Rc2 $1 {[%emt 0:02:07]} Qa4 {[%emt 0:00:47] [#]} 37. Qc4 $2 {[%emt 0:02:49]} (37. Rb8 $1 $18 {[%cal Rb8c8] and the rest is easy.} Qa6 38. Qe1 Rxc7 39. Rxc7 Qxa2 40. Qf1) 37... Qd7 {[%emt 0:00:26]} 38. a4 {[%emt 0:02:03]} (38. Rbc1 $142) 38... Qe7 $16 {[%emt 0:00:37]} 39. Rbc1 {[%emt 0:02:25]} ({White should play} 39. a5 $16) 39... Qa3 $14 {[%emt 0:00:26]} 40. Rc3 {[%emt 0:00:00]} Qb2 {[%emt 0:00:00][%csl Gg6][%cal Rb2g2]} 41. Qf1 $36 {[%emt 0:03:06][%mdl 2048] Prevents Qg2+. White is in control.} Rg5 {[%emt 0:12:19]} 42. Rc5 {[%emt 0:02:50]} (42. R1c2 $16 Qb6 43. Rc5) 42... Qb7 {[%emt 0:08:28][%mdl 8192] This move loses the game for Black.} (42... a5 $14) 43. Rb1 $18 {[%emt 0:03:57]} Qa8 {[%emt 0:00:13]} 44. a5 {[%emt 0:00:21]} a6 {[%emt 0:02:24]} 45. Rb6 {[%emt 0:01:53][%cal Of1d3] aiming for Qd3!} Qa7 {[%emt 0:01:43]} 46. Qc4 {[%emt 0:00:21]} (46. Qxa6 Rxc7 47. Qxa7 Rxa7 $18) 46... Qa8 {[%emt 0:00:09]} 47. Qd3 {[%emt 0:01:44]} (47. Rxe6 $2 Qxf3#) 47... Qa7 {[%emt 0:07:46]} 48. Qd7 {[%emt 0:00:08]} (48. Qxa6 Rxc7 49. Qxa7 Rxa7 $16) 48... Qa8 {[%emt 0:00:36]} 49. Qc6 {[%emt 0:00:19] Active counter play!} (49. Qxe6 $2 Qxf3#) 49... Rxc7 {[%emt 0:01:01]} 50. Qxa8 {[%emt 0:00:09]} Rxc5 {[%emt 0:00:03]} 51. Rb1 {[%emt 0:02:31]} (51. Qxa6 $2 Rc1+) 51... Rc2 {[%emt 0:00:40]} 52. Qe8 {[%emt 0:01:19] And now Rg1 would win.} Rgg2 {[%emt 0:00:49] [#]} 53. Qh5 $1 {[%emt 0:00:20]} ({Worse is} 53. Qxe6 Rxh2+ 54. Kg1 Rcg2+ 55. Kf1 Rf2+ 56. Kg1 (56. Ke1 Re2+ 57. Kf1 Ref2+ 58. Kg1 Rfg2+ 59. Kf1 Rf2+ $11) 56... Rfg2+ 57. Kf1 Rf2+ 58. Kg1 (58. Ke1 Re2+ 59. Kf1 Ref2+ $11) 58... Rhg2+ 59. Kh1 Rh2+ 60. Kg1 $11) 53... Rgd2 {[%emt 0:00:22]} 54. Rg1 {[%emt 0:00:54] White wants to mate with Qg6+.} g5 {[%emt 0:00:36]} 55. Rb1 {[%emt 0:00:44] White mates.} (55. Rxg5 $2 {is the wrong capture.} Rxh2+ 56. Kg1 Rxh5 57. Rxh5 Ra2 $19) 55... Rc7 {[%emt 0:00:33]} 56. Qe8 {[%emt 0:00:13]} g4 {[%emt 0:00:47]} 57. fxg4 {[%emt 0:00:12]} fxg4 {[%emt 0:00:27]} 58. Qxe6 {[%emt 0:00:06] Weighted Error Value: White=0.31/Black=0.40} 1-0

[Event "European Women-ch 2023"]
[Site "Petrovac"]
[Date "2023.03.19"]
[Round "2.17"]
[White "Lehaci, Miruna-Daria"]
[Black "Arabidze, Meri"]
[Result "1/2-1/2"]
[ECO "C77"]
[WhiteElo "2202"]
[BlackElo "2433"]
[Annotator "TA"]
[PlyCount "104"]
[EventDate "2023.03.15"]
[EventType "swiss"]
[EventCountry "MNE"]
[SourceTitle "playchess.com"]
[Source "ChessBase"]
[SourceQuality "1"]
[TimeControl "40/5400+30:1800+30"]

{[%evp 12,104,10,10,8,16,13,14,35,0,35,0,0,0,0,0,0,0,9,6,10,-8,0,-4,0,-25,0,4,-4,-20,-17,-23,-20,-25,-12,-20,0,0,0,0,0,0,0,0,0,0,0,0,0,0,0,0,0,-6,0,-6,-6,-6,0,-10,0,0,10,0,30,0,0,-33,0,0,0,0,0,0,0,0,0,0,0,0,10,0,23,0,0,-31,0,0,14,0,0,0,0,-5,-5]} 1. e4 {[%emt 0:00:04]} e5 {[%emt 0:00:05]} 2. Nf3 {[%emt 0:00:04]} Nc6 {[%emt 0:00:07]} 3. Bb5 {[%emt 0:00:04]} a6 {[%emt 0:00:06]} 4. Ba4 {[%emt 0:00:04]} Nf6 {[%emt 0:00:06]} 5. d3 {[%emt 0:00:04]} b5 {[%emt 0:00:18]} 6. Bb3 {[%emt 0:00:04]} Bc5 {[%emt 0:00:10]} 7. Nc3 {[%emt 0:00:42] Recently 7.c3 got a lot of attention.} d6 {[%emt 0:01:07] C77: Ruy Lopez: 3...a6 4 Ba4 Nf6, unusual lines.} 8. Nd5 {[%emt 0:00:34]} h6 {[%emt 0:06:24] Prevents Bg5.} 9. c3 {[%emt 0:01:42]} Bd7 {[%emt 0:05:11]} 10. h3 {[%emt 0:03:38] [#]} Ba7 $146 {[%emt 0:07:42]} ({Predecessor:} 10... O-O 11. g4 Nh7 12. Rg1 a5 13. g5 a4 14. Bc2 f5 15. d4 exd4 16. cxd4 Bb4+ 17. Nxb4 Nxb4 18. gxh6 fxe4 19. Rxg7+ {0-1 Antolak,J (2368)-Sargsyan,A (2368) Wroclaw Litwinska Memorial KO rapid 2021 (3.2)}) 11. Qe2 {[%emt 0:10:19]} Rb8 {[%emt 0:03:05]} 12. Be3 {[%emt 0:04:58]} Bxe3 {[%emt 0:04:42]} 13. Nxf6+ {[%emt 0:00:42]} Qxf6 {[%emt 0:01:41]} 14. fxe3 {[%emt 0:00:13]} Qd8 {[%emt 0:21:21]} 15. O-O {[%emt 0:03:12]} O-O {[%emt 0:00:05]} 16. Nh2 {[%emt 0:09:43]} Na5 {[%emt 0:02:37]} 17. Bc2 {[%emt 0:01:33]} c5 {[%emt 0:00:43]} 18. Rf3 {[%emt 0:03:31]} Qh4 {[%emt 0:05:51]} 19. Nf1 {[%emt 0:04:54]} b4 {[%emt 0:03:17]} 20. cxb4 {[%emt 0:03:59]} Rxb4 {[%emt 0:05:33]} 21. b3 {[%emt 0:00:17]} Nc6 {[%emt 0:01:46]} 22. Ng3 {[%emt 0:05:51]} a5 {[%emt 0:00:28]} 23. Raf1 {[%emt 0:05:22]} Rbb8 {[%emt 0:01:42]} (23... Be6 {is interesting.} 24. Nf5 Qd8 25. Rg3 Bxf5 26. Rxf5 Qh4) 24. Nf5 {[%emt 0:00:57]} Bxf5 {[%emt 0:02:11]} 25. Rxf5 {[%emt 0:00:14]} Qe7 {[%emt 0:05:49]} 26. Bd1 {[%emt 0:03:47]} Nd8 {[%emt 0:03:34]} 27. Qe1 {[%emt 0:02:22]} Ra8 {[%emt 0:00:30]} 28. Bh5 {[%emt 0:05:04]} f6 {[%emt 0:02:46]} 29. R5f2 {[%emt 0:02:34]} Kh7 {[%emt 0:01:26]} 30. Qc3 {[%emt 0:06:47]} Ne6 {[%emt 0:02:01]} 31. Qc4 {[%emt 0:01:08]} Nc7 {[%emt 0:00:31]} 32. Rc2 {[%emt 0:06:06]} Rfb8 {[%emt 0:04:55]} 33. Qc3 {[%emt 0:02:15]} Rb4 {[%emt 0:01:19]} 34. Qe1 {[%emt 0:01:16]} Ne6 {[%emt 0:02:28]} 35. Qg3 {[%emt 0:00:51]} Nf8 {[%emt 0:00:38]} (35... a4 {looks sharper.} 36. Qg6+ Kg8 37. bxa4 Nf8) 36. Rcf2 {[%emt 0:02:02]} a4 {[%emt 0:01:36] Black is weak on the light squares} 37. Bd1 {[%emt 0:01:49]} a3 {[%emt 0:01:31]} 38. Qh4 {[%emt 0:01:39]} d5 {[%emt 0:01:30]} 39. Bg4 {[%emt 0:00:44]} d4 {[%emt 0:00:58]} 40. Qg3 {[%emt 0:00:00]} dxe3 {[%emt 0:00:00]} 41. Qxe3 {[%emt 0:04:41]} Rd4 {[%emt 0:03:39]} 42. Rc2 {[%emt 0:01:05]} Qd6 {[%emt 0:04:46]} 43. Rfc1 {[%emt 0:01:20]} Ra5 {[%emt 0:05:00][%cal Ba8a5,Ba5b5,Bb5b8][%mdl 32]} 44. Rc3 {[%emt 0:06:22]} Kg8 {[%emt 0:00:19]} 45. Bf5 {[%emt 0:02:02]} Rb5 {[%emt 0:01:30]} 46. h4 {[%emt 0:01:39]} Rb8 {[%emt 0:05:36]} 47. Kf1 {[%emt 0:03:05]} (47. Qe2 {simplifies} g6 48. Bh3 Rd8 49. Rxc5 Rxd3 50. Kh2) 47... Rd8 {[%emt 0:01:14]} 48. Ke2 {[%emt 0:01:31]} (48. Kg1 {simplifies} Ne6 49. Bxe6+ Qxe6 50. Qf3) 48... Kh8 {[%emt 0:06:08]} 49. h5 {[%emt 0:00:53] Active counter play! The position is equal.} Nh7 {[%emt 0:02:34]} 50. Bxh7 {[%emt 0:01:09]} Kxh7 {[%emt 0:00:11]} 51. g4 {[%emt 0:01:06]} Kh8 {[%emt 0:01:56]} 52. R1c2 {[%emt 0:00:30]} Qd7 {[%emt 0:01:04] An even fight not without its subleties.   Weighted Error Value: White=0.07 (flawless) /Black=0.08 (flawless)} 1/2-1/2

[Event "European Women-ch 2023"]
[Site "Petrovac"]
[Date "2023.03.19"]
[Round "2.17"]
[White "Paasikangas, Johanna"]
[Black "Bakalarz, Grazyna"]
[Result "1/2-1/2"]
[ECO "B30"]
[WhiteElo "2115"]
[BlackElo "1847"]
[Annotator "TA"]
[PlyCount "107"]
[EventDate "2023.03.15"]
[EventType "swiss"]
[EventCountry "MNE"]
[SourceTitle "playchess.com"]
[Source "ChessBase"]
[SourceQuality "1"]
[TimeControl "40/5400+30:1800+30"]

{[%evp 14,107,43,27,26,10,53,21,11,0,0,-14,0,0,-7,0,0,0,0,0,0,0,0,-24,8,7,8,10,18,12,15,13,13,9,42,44,53,12,37,37,36,6,8,9,10,14,26,43,49,0,0,0,0,-12,22,-38,-30,-78,-78,-78,-78,-78,-59,-96,-47,-57,-39,-39,0,0,0,0,0,0,0,0,0,0,0,0,0,0,0,0,0,0,0,0,0,0,0,0,0,0,0,0]} 1. e4 {[%emt 0:00:06]} c5 {[%emt 0:01:00]} 2. Nf3 {[%emt 0:00:32]} Nc6 {[%emt 0:00:04]} 3. Bb5 {[%emt 0:02:37]} e6 {[%emt 0:02:24]} 4. O-O {[%emt 0:03:37]} Nge7 {[%emt 0:03:10]} 5. Re1 {[%emt 0:03:17]} a6 {[%emt 0:00:37]} 6. Bf1 {[%emt 0:01:00]} d5 {[%emt 0:00:47]} 7. exd5 {[%emt 0:01:47]} Qxd5 {[%emt 0:14:17]} 8. Nc3 {[%emt 0:05:07]} Qd8 {[%emt 0:04:47] B30: Sicilian: 2...Nc6 3 Bb5, lines without ...g6.} 9. d3 {[%emt 0:03:59] [#]} Nd5 $146 {[%emt 0:02:47]} ({Predecessor:} 9... Nf5 10. g3 Be7 11. Bg2 O-O 12. a4 Ra7 13. Ne4 b6 14. c3 Rd7 15. Qe2 Rxd3 16. Bf4 {1-0 Sadhwani,R (2545)-Martirosyan,H (2622) Levitov Christmas Online Q2 blitz 2020}) 10. Ne4 {[%emt 0:02:07]} Be7 {[%emt 0:03:51]} 11. c3 {[%emt 0:01:44]} O-O {[%emt 0:01:20]} 12. d4 {[%emt 0:08:49]} cxd4 {[%emt 0:01:32]} 13. Nxd4 {[%emt 0:03:34]} Nxd4 {[%emt 0:02:02]} 14. Qxd4 {[%emt 0:00:15]} b5 {[%emt 0:06:11]} 15. a4 {[%emt 0:10:28]} Bd7 {[%emt 0:02:09]} 16. axb5 {[%emt 0:10:35]} axb5 {[%emt 0:00:38]} 17. Rxa8 {[%emt 0:00:16]} Qxa8 {[%emt 0:00:28]} 18. Bg5 {[%emt 0:01:20]} (18. Nc5 $5 {[%cal Rc5d7]} Bc6 19. Nd3 $11) 18... Bxg5 {[%emt 0:04:16]} 19. Nxg5 {[%emt 0:00:57]} h6 {[%emt 0:02:11]} 20. Nf3 {[%emt 0:04:56]} Qa4 {[%emt 0:07:50]} 21. Qd2 {[%emt 0:05:35]} Rb8 {[%emt 0:04:09]} 22. Nd4 {[%emt 0:02:04]} Qa2 {[%emt 0:04:54]} 23. h3 {[%emt 0:02:48]} b4 {[%emt 0:02:24]} 24. c4 {[%emt 0:01:01]} Nf6 {[%emt 0:08:40]} 25. Qc1 {[%emt 0:07:18]} Qa5 {[%emt 0:03:42]} 26. Qf4 {[%emt 0:01:55]} Rc8 {[%emt 0:02:18]} 27. b3 {[%emt 0:01:21]} Be8 {[%emt 0:05:37]} 28. Qe3 {[%emt 0:05:06][%cal Od4e6] White wants to play Nxe6!} Rd8 {[%emt 0:02:19]} 29. Nf3 {[%emt 0:02:11]} Bc6 {[%emt 0:00:41]} 30. Ne5 {[%emt 0:00:24]} Be4 {[%emt 0:00:52]} 31. Ng4 {[%emt 0:02:08]} (31. Qf4 $1 $14) 31... Nxg4 $11 {[%emt 0:01:13]} 32. Qxe4 {[%emt 0:00:39]} Nf6 $36 {[%emt 0:01:41][%cal Bg4f6,Bf6e4,Be4c5][%mdl 2080] Black has some pressure.} 33. Qc2 {[%emt 0:01:09]} Rd4 {[%emt 0:00:00]} 34. Be2 {[%emt 0:02:22] White is weak on the dark squares} (34. c5 $11) 34... Ne4 {[%emt 0:01:40]} 35. Rd1 {[%emt 0:01:51]} (35. Bf3 $11 {deserves consideration.} Nc5 36. Rd1 Rxd1+ 37. Qxd1) 35... Rxd1+ $17 {[%emt 0:03:05]} 36. Bxd1 {[%emt 0:00:37][%mdl 4096] Endgame KQB-KQN} Qa1 {[%emt 0:00:10] [#] Strongly threatening ...Nc3.} 37. Kf1 {[%emt 0:01:42]} Qd4 {[%emt 0:01:15][%cal Oe4f2] ...Nxf2! would be deadly.} 38. Ke1 {[%emt 0:00:50]} Nc5 {[%emt 0:01:07]} ({But not} 38... Nc3 $6 39. Qd2 Qe4+ 40. Kf1 $11) (38... g6 $17) 39. Qd2 $15 {[%emt 0:01:15]} Qxd2+ {[%emt 0:00:34]} 40. Kxd2 {[%emt 0:00:00] KB-KN} Kf8 {[%emt 0:00:00]} 41. Ke3 {[%emt 0:00:17] The position is equal.} Ke7 {[%emt 0:00:38]} 42. Kd4 {[%emt 0:06:09]} Kd6 {[%emt 0:00:19]} 43. f4 {[%emt 0:00:48]} f6 {[%emt 0:02:52]} 44. Bc2 {[%emt 0:00:42]} g5 {[%emt 0:01:44]} 45. g3 {[%emt 0:00:55]} e5+ {[%emt 0:05:21]} 46. fxe5+ {[%emt 0:02:17]} fxe5+ {[%emt 0:00:07]} 47. Ke3 {[%emt 0:00:06]} Ke6 {[%emt 0:03:02]} 48. h4 {[%emt 0:01:16]} Kf6 {[%emt 0:02:27]} 49. Kf3 {[%emt 0:02:05]} gxh4 {[%emt 0:03:49]} 50. gxh4 {[%emt 0:00:12]} h5 {[%emt 0:00:37]} 51. Ke3 {[%emt 0:00:40]} Kg7 {[%emt 0:00:23]} 52. Bd1 {[%emt 0:02:25]} Kg6 {[%emt 0:00:17]} 53. Bc2+ {[%emt 0:00:43]} Kg7 {[%emt 0:00:07]} 54. Bd1 {[%emt 0:00:49] Weighted Error Value: White=0.12 (very precise) /Black=0.08 (flawless)} 1/2-1/2